fUSD/lending_fUSD_20240212
["ID","MTS","AMOUNT","RATE_DAILY","PERIOD"]
[313857034,1707754281987,-500.0,0.00026462,2]
[313857035,1707754281997,-500.0,0.00026462,2]
[313857036,1707754282007,-500.0,0.00026462,2]
[313857037,1707754282016,-500.0,0.00026462,2]
[313857038,1707754282029,-500.0,0.00026462,2]
[313857039,1707754282038,-500.0,0.00026462,2]
[313857040,1707754282052,-500.0,0.00026462,2]
[313857041,1707754282061,-500.0,0.00026462,2]
[313857042,1707754282071,-500.0,0.00026462,2]
[313857043,1707754282081,-500.0,0.00026462,2]
[313857044,1707754282092,-500.0,0.00026462,2]
[313857045,1707754282102,-500.0,0.00026462,2]
[313857046,1707754282111,-500.0,0.00026462,2]
[313857047,1707754282121,-500.0,0.00026462,2]
[313857048,1707754282132,-500.0,0.00026462,2]
[313857049,1707754282142,-500.0,0.00026462,2]
[313857050,1707754282152,-500.0,0.00026462,2]
[313857051,1707754282161,-500.0,0.00026462,2]
[313857052,1707754282170,-500.0,0.00026462,2]
[313857053,1707754282180,-569.39,0.00026462,2]
[313857054,1707754282190,-500.0,0.00026462,2]
[313857055,1707754282199,-500.0,0.00026462,2]
[313857056,1707754282209,-500.0,0.00026462,2]
[313857057,1707754282218,-500.0,0.00026462,2]
[313857058,1707754282228,-500.0,0.00026462,2]
[313857059,1707754282237,-500.0,0.00026462,2]
[313857060,1707754282247,-500.0,0.00026462,2]
[313857061,1707754282256,-494.73535811,0.00026462,2]
[313857062,1707754282265,-500.0,0.00026462,2]
[313857063,1707754282279,-500.0,0.00026462,2]
[313857064,1707754282288,-500.0,0.00026462,2]
[313857065,1707754282298,-500.0,0.00026462,2]
[313857066,1707754282308,-500.0,0.00026462,2]
[313857067,1707754282319,-500.0,0.00026462,2]
[313857068,1707754282329,-500.0,0.00026462,2]
[313857069,1707754282338,-500.0,0.00026462,2]
[313857070,1707754282348,-300.93833634,0.00026462,2]
[313857071,1707754282357,-500.0,0.00026462,2]
[313857072,1707754282367,-500.0,0.00026462,2]
[313857073,1707754282376,-500.0,0.00026462,2]
[313857074,1707754282385,-500.0,0.00026462,2]
[313857075,1707754282395,-500.0,0.00026462,2]
[313857076,1707754282404,-500.0,0.00026462,2]
[313857077,1707754282414,-500.0,0.00026463,2]
[313857078,1707754282423,-500.0,0.00026463,2]
[313857079,1707754282433,-500.0,0.00026463,2]
[313857080,1707754282443,-500.0,0.00026463,2]
[313857081,1707754282452,-591.97927242,0.00026463,2]
[313857082,1707754282462,-325.38760164,0.00026463,2]
[313857083,1707754282471,-500.0,0.00026463,2]
[313857084,1707754282480,-500.0,0.00026463,2]
[313857085,1707754282489,-500.0,0.00026463,2]
[313857086,1707754282500,-500.0,0.00026463,2]
[313857087,1707754282509,-500.0,0.00026463,2]
[313857088,1707754282518,-500.0,0.00026463,2]
[313857089,1707754282530,-500.0,0.00026463,2]
[313857090,1707754282539,-500.0,0.00026463,2]
[313857091,1707754282548,-500.0,0.00026463,2]
[313857092,1707754282558,-500.0,0.00026463,2]
[313857093,1707754282567,-500.0,0.00026463,2]
[313857094,1707754282577,-500.0,0.00026463,2]
[313857095,1707754282586,-500.0,0.00026463,2]
[313857096,1707754282597,-500.0,0.00026463,2]
[313857097,1707754282610,-500.0,0.00026463,2]
[313857098,1707754282619,-1339.16,0.00026463,2]
[313857099,1707754282628,-500.0,0.00026463,2]
[313857100,1707754282636,-500.0,0.00026463,2]
[313857101,1707754282646,-500.0,0.00026463,2]
[313857102,1707754282656,-500.0,0.00026463,2]
[313857103,1707754282665,-500.0,0.00026463,2]
[313857104,1707754282675,-500.0,0.00026463,2]
[313857105,1707754282684,-500.0,0.00026463,2]
[313857106,1707754282693,-500.0,0.00026463,2]
[313857107,1707754282702,-150.0,0.00026498,2]
[313857108,1707754282712,-3141.35362126,0.00026598,2]
[313857109,1707754282721,-150.0,0.00026732,2]
[313857110,1707754282730,-3224.84,0.00026733,2]
[313857111,1707754282740,-500.0,0.00026733,2]
[313857112,1707754282750,-500.0,0.00026733,2]
[313857113,1707754282759,-500.0,0.00026733,2]
[313857114,1707754282768,-500.0,0.00026733,2]
[313857115,1707754282779,-500.0,0.00026733,2]
[313857116,1707754282789,-500.0,0.00026733,2]
[313857117,1707754282798,-547.66,0.00026733,2]
[313857118,1707754282807,-500.0,0.00026733,2]
[313857119,1707754282870,-500.0,0.00026733,2]
[313857120,1707754282879,-522.67,0.00026733,2]
[313857121,1707754282889,-500.0,0.00026733,2]
[313857122,1707754282898,-500.0,0.00026733,2]
[313857123,1707754282908,-2324.33,0.00026733,2]
[313857124,1707754282917,-500.0,0.00026733,2]
[313857125,1707754282926,-500.0,0.00026733,2]
[313857126,1707754282936,-500.0,0.00026733,2]
[313857127,1707754282945,-500.0,0.00026733,2]
[313857128,1707754282955,-500.0,0.00026733,2]
[313857129,1707754282964,-500.0,0.00026733,2]
[313857130,1707754282974,-500.0,0.00026733,2]
[313857131,1707754282984,-500.0,0.00026733,2]
[313857132,1707754282993,-500.0,0.00026733,2]
[313857133,1707754283003,-712.14,0.00026733,2]
[313857134,1707754283013,-536.85,0.00026733,2]
[313857135,1707754283023,-500.0,0.00026733,2]
[313857136,1707754283034,-1161.18,0.00026733,2]
[313857137,1707754283044,-500.0,0.00026733,2]
[313857138,1707754283054,-500.0,0.00026733,2]
[313857139,1707754283067,-500.0,0.00026733,2]
[313857140,1707754283077,-1827.32,0.00026733,2]
[313857141,1707754283086,-500.0,0.00026733,2]
[313857142,1707754283096,-602.38,0.00026733,2]
[313857143,1707754283106,-500.0,0.00026733,2]
[313857144,1707754283115,-500.0,0.00026733,2]
[313857145,1707754283124,-500.0,0.00026733,2]
[313857146,1707754283135,-500.0,0.00026733,2]
[313857147,1707754283146,-500.0,0.00026733,2]
[313857148,1707754283155,-500.0,0.00026733,2]
[313857149,1707754283165,-500.0,0.00026733,2]
[313857150,1707754283175,-927.18,0.00026733,2]
[313857151,1707754283184,-500.0,0.00026733,2]
[313857152,1707754283194,-569.35,0.00026733,2]
[313857153,1707754283203,-500.0,0.00026733,2]
[313857154,1707754283213,-500.0,0.00026733,2]
[313857155,1707754283223,-399.56,0.00026733,2]
[313857156,1707754283232,-1034.63,0.00026733,2]
[313857157,1707754283241,-754.76,0.00026733,2]
[313857158,1707754283251,-630.79,0.00026733,2]
[313857159,1707754283260,-500.0,0.00026733,2]
[313857160,1707754283271,-500.0,0.00026733,2]
[313857161,1707754283281,-500.0,0.00026733,2]
[313857162,1707754283290,-578.43957888,0.00026733,2]
[313857163,1707754283299,-1118.22,0.00026733,2]
[313857164,1707754283308,-500.0,0.00026733,2]
[313857165,1707754283317,-500.0,0.00026733,2]
[313857166,1707754283327,-500.0,0.00026733,2]
[313857167,1707754283336,-500.0,0.00026733,2]
[313857168,1707754283345,-155.49964085,0.00026734,2]
[313857169,1707754283354,-171.18,0.00026734,2]
[313857170,1707754283363,-500.0,0.00026734,2]
[313857171,1707754283372,-500.0,0.00026734,2]
[313857172,1707754283380,-500.0,0.00026734,2]
[313857173,1707754283390,-500.0,0.00026734,2]
[313857174,1707754283399,-500.0,0.00026734,2]
[313857175,1707754283408,-500.0,0.00026734,2]
[313857176,1707754283417,-500.0,0.00026734,2]
[313857177,1707754283425,-500.0,0.00026734,2]
[313857178,1707754283434,-500.0,0.00026734,2]
[313857179,1707754283443,-500.0,0.00026734,2]
[313857180,1707754283452,-668.37,0.00026734,2]
[313857181,1707754283461,-500.0,0.00026734,2]
[313857182,1707754283470,-500.0,0.00026734,2]
[313857183,1707754283479,-500.0,0.00026734,2]
[313857184,1707754283488,-500.0,0.00026734,2]
[313857185,1707754283498,-500.0,0.00026734,2]
[313857186,1707754283507,-500.0,0.00026734,2]
[313857187,1707754283516,-500.0,0.00026734,2]
[313857188,1707754283527,-2677.34,0.00026734,2]
[313857189,1707754283537,-500.0,0.00026734,2]
[313857190,1707754283546,-500.0,0.00026734,2]
[313857191,1707754283555,-1847.7,0.00026734,2]
[313857192,1707754283564,-500.0,0.00026734,2]
[313857193,1707754283574,-500.0,0.00026734,2]
[313857194,1707754283583,-500.0,0.00026734,2]
[313857195,1707754283592,-500.0,0.00026734,2]
[313857196,1707754283602,-150.0,0.00026734,2]
[313857197,1707754283611,-1182.43,0.00026734,2]
[313857198,1707754283620,-500.0,0.00026734,2]
[313857199,1707754283630,-500.0,0.00026734,2]
[313857200,1707754283638,-612.87,0.00026735,2]
[313857201,1707754283647,-530.81,0.00026735,2]
[313857202,1707754283656,-579.45,0.00026735,2]
[313857203,1707754283665,-429.7,0.00026735,2]
[313857204,1707754283674,-500.0,0.00026735,2]
[313857205,1707754283683,-1624.92,0.00026735,2]
[313857206,1707754283692,-500.0,0.00026735,2]
[313857207,1707754283701,-500.0,0.00026735,2]
[313857208,1707754283710,-511.39,0.00026735,2]
[313857209,1707754283719,-500.0,0.00026735,2]
[313857210,1707754283727,-500.0,0.00026735,2]
[313857211,1707754283736,-500.0,0.00026735,2]
[313857212,1707754283745,-500.0,0.00026735,2]
[313857213,1707754283754,-500.0,0.00026735,2]
[313857214,1707754283763,-570.58,0.00026735,2]
[313857215,1707754283774,-500.0,0.00026735,2]
[313857216,1707754283783,-165.07,0.00026735,2]
[313857217,1707754283792,-1139.86,0.00026735,2]
[313857218,1707754283801,-613.22,0.00026735,2]
[313857219,1707754283810,-500.0,0.00026735,2]
[313857220,1707754283820,-500.0,0.00026735,2]
[313857221,1707754283830,-238.92,0.00026735,2]
[313857222,1707754283840,-500.0,0.00026735,2]
[313857223,1707754283849,-500.0,0.00026735,2]
[313857224,1707754283859,-801.05,0.00026735,2]
[313857225,1707754283868,-504.72,0.00026735,2]
[313857226,1707754283877,-500.0,0.00026735,2]
[313857227,1707754283886,-500.0,0.00026735,2]
[313857228,1707754283895,-500.0,0.00026735,2]
[313857229,1707754283904,-449.47898352,0.00026735,2]
[313857230,1707754283914,-500.0,0.00026735,2]
[313857231,1707754283923,-598.63,0.00026735,2]
[313857232,1707754283933,-1632.44,0.00026735,2]
[313857233,1707754283943,-210.83606503,0.00026735,2]
[313857234,1707754283953,-500.0,0.00026735,2]
[313857235,1707754283962,-500.0,0.00026735,2]
[313857236,1707754283972,-500.0,0.00026735,2]
[313857237,1707754283981,-500.0,0.00026735,2]
[313857238,1707754283991,-510.63,0.00026735,2]
[313857239,1707754284000,-500.0,0.00026735,2]
[313857240,1707754284011,-500.0,0.00026735,2]
[313857241,1707754284021,-622.24,0.00026735,2]
[313857242,1707754284031,-500.0,0.00026735,2]
[313857243,1707754284041,-500.0,0.00026735,2]
[313857244,1707754284054,-504.6,0.00026735,2]
[313857245,1707754284064,-619.98,0.00026735,2]
[313857246,1707754284073,-1237.84,0.00026735,2]
[313857247,1707754284083,-500.0,0.00026735,2]
[313857248,1707754284093,-674.02,0.00026735,2]
[313857249,1707754284102,-478.87,0.00026735,2]
[313857250,1707754284112,-438.09,0.00026735,2]
[313857251,1707754284122,-500.0,0.00026735,2]
[313857252,1707754284131,-521.13,0.00026735,2]
[313857253,1707754284142,-500.0,0.00026735,2]
[313857254,1707754284152,-1959.64,0.00026735,2]
[313857255,1707754284161,-534.53,0.00026735,2]
[313857256,1707754284171,-500.0,0.00026735,2]
[313857257,1707754284179,-173.3773463,0.00026736,2]
[313857258,1707754284188,-500.0,0.00026736,2]
[313857259,1707754284199,-366.27,0.00026736,2]
[313857260,1707754284208,-500.0,0.00026736,2]
[313857261,1707754284218,-500.0,0.00026736,2]
[313857262,1707754284227,-500.0,0.00026736,2]
[313857263,1707754284236,-500.0,0.00026736,2]
[313857264,1707754284246,-500.0,0.00026736,2]
[313857265,1707754284255,-500.0,0.00026736,2]
[313857266,1707754284264,-500.0,0.00026736,2]
[313857267,1707754284274,-500.0,0.00026736,2]
[313857268,1707754284284,-500.0,0.00026736,2]
[313857269,1707754284293,-500.0,0.00026736,2]
[313857270,1707754284303,-500.0,0.00026736,2]
[313857271,1707754284312,-500.0,0.00026736,2]
[313857272,1707754284321,-500.0,0.00026736,2]
[313857273,1707754284330,-500.0,0.00026736,2]
[313857274,1707754284339,-500.0,0.00026736,2]
[313857275,1707754284349,-500.0,0.00026736,2]
[313857276,1707754284358,-500.0,0.00026736,2]
[313857277,1707754284367,-500.0,0.00026736,2]
[313857278,1707754284376,-500.0,0.00026736,2]
[313857279,1707754284386,-500.0,0.00026736,2]
[313857280,1707754284395,-500.0,0.00026736,2]
[313857281,1707754284405,-500.0,0.00026736,2]
[313857282,1707754284414,-500.0,0.00026736,2]
[313857283,1707754284424,-500.0,0.00026736,2]
[313857284,1707754284434,-500.0,0.00026736,2]
[313857285,1707754284443,-569.39,0.00026736,2]
[313857286,1707754284451,-500.0,0.00026736,2]
[313857287,1707754284461,-500.0,0.00026736,2]
[313857288,1707754284469,-500.0,0.00026736,2]
[313857289,1707754284481,-500.0,0.00026736,2]
[313857290,1707754284491,-500.0,0.00026736,2]
[313857291,1707754284501,-500.0,0.00026736,2]
[313857292,1707754284510,-500.0,0.00026736,2]
[313857293,1707754284520,-500.0,0.00026736,2]
[313857294,1707754284530,-500.0,0.00026736,2]
[313857295,1707754284539,-500.0,0.00026736,2]
[313857296,1707754284548,-500.0,0.00026736,2]
[313857297,1707754284557,-602.52881642,0.00026736,2]
[313857298,1707754284567,-381.9749767,0.00026736,2]
[313857299,1707754284576,-500.0,0.00026736,2]
[313857300,1707754284585,-500.0,0.00026736,2]
[313857301,1707754284594,-500.0,0.00026736,2]
[313857302,1707754284606,-503.88936229,0.00026736,2]
[313857303,1707754284615,-500.0,0.00026736,2]
[313857304,1707754284624,-500.0,0.00026736,2]
[313857305,1707754284634,-500.0,0.00026736,2]
[313857306,1707754284643,-500.0,0.00026736,2]
[313857307,1707754284656,-500.0,0.00026737,2]
[313857308,1707754284668,-637.82140201,0.00026737,2]
[313857309,1707754284678,-500.0,0.00026737,2]
[313857310,1707754284688,-500.0,0.00026737,2]
[313857311,1707754284698,-500.0,0.00026737,2]
[313857312,1707754284707,-500.0,0.00026737,2]
[313857313,1707754284717,-616.39989303,0.00026737,2]
[313857314,1707754284726,-500.0,0.00026737,2]
[313857315,1707754284736,-500.0,0.00026737,2]
[313857316,1707754284746,-500.0,0.00026737,2]
[313857317,1707754284755,-500.0,0.00026737,2]
[313857318,1707754284765,-500.0,0.00026737,2]
[313857319,1707754284774,-187.08722263,0.00026737,2]
[313857320,1707754284783,-500.0,0.00026737,2]
[313857321,1707754284792,-500.0,0.00026737,2]
[313857322,1707754284802,-522.32936448,0.00026737,2]
[313857323,1707754284811,-500.0,0.00026737,2]
[313857324,1707754284821,-500.0,0.00026737,2]
[313857325,1707754284830,-500.0,0.00026737,2]
[313857326,1707754284839,-1339.16,0.00026737,2]
[313857327,1707754284848,-500.0,0.00026737,2]
[313857328,1707754284857,-500.0,0.00026737,2]
[313857329,1707754284866,-500.0,0.00026737,2]
[313857330,1707754284875,-500.0,0.00026737,2]
[313857331,1707754284884,-500.0,0.00026737,2]
[313857332,1707754284894,-500.0,0.00026737,2]
[313857333,1707754284903,-500.0,0.00026737,2]
[313857334,1707754284912,-500.0,0.00026737,2]
[313857335,1707754284922,-152.0,0.00026793,2]
[313857336,1707754284931,-354.0,0.00026793,2]
[313857337,1707754284941,-871.0,0.000269,2]
[313857338,1707754284953,-1000.0,0.000269,2]
[313857339,1707754284962,-346.0,0.000269,2]
[313857340,1707754284972,-250.5,0.00026981,2]
[313857341,1707754284981,-678.88791362,0.00027,2]
[313857342,1707754284991,-1300.0,0.00027,3]
[313857343,1707754285000,-3224.84,0.00027007,2]
[313857344,1707754285010,-500.0,0.00027007,2]
[313857345,1707754285020,-500.0,0.00027007,2]
[313857346,1707754285030,-500.0,0.00027007,2]
[313857347,1707754285039,-500.0,0.00027007,2]
[313857348,1707754285049,-500.0,0.00027007,2]
[313857349,1707754285060,-547.66,0.00027007,2]
[313857350,1707754285071,-500.0,0.00027007,2]
[313857351,1707754285081,-500.0,0.00027007,2]
[313857352,1707754285090,-522.67,0.00027007,2]
[313857353,1707754285100,-214.53,0.00027007,2]
[313857354,1707754285110,-500.0,0.00027007,2]
[313857355,1707754285119,-2324.33,0.00027007,2]
[313857356,1707754285128,-500.0,0.00027007,2]
[313857357,1707754285139,-500.0,0.00027007,2]
[313857358,1707754285148,-500.0,0.00027007,2]
[313857359,1707754285157,-500.0,0.00027007,2]
[313857360,1707754285166,-500.0,0.00027007,2]
[313857361,1707754285176,-440.19,0.00027007,2]
[313857362,1707754285185,-500.0,0.00027007,2]
[313857363,1707754285195,-712.14,0.00027007,2]
[313857364,1707754285205,-536.85,0.00027007,2]
[313857365,1707754285214,-500.0,0.00027007,2]
[313857366,1707754285224,-1161.18,0.00027007,2]
[313857367,1707754285234,-500.0,0.00027007,2]
[313857368,1707754285243,-500.0,0.00027007,2]
[313857369,1707754285253,-500.0,0.00027007,2]
[313857370,1707754285263,-1827.32,0.00027007,2]
[313857371,1707754285274,-602.38,0.00027007,2]
[313857372,1707754285283,-500.0,0.00027007,2]
[313857373,1707754285295,-500.0,0.00027007,2]
[313857374,1707754285305,-500.0,0.00027007,2]
[313857375,1707754285315,-500.0,0.00027007,2]
[313857376,1707754285325,-500.0,0.00027007,2]
[313857377,1707754285334,-500.0,0.00027007,2]
[313857378,1707754285344,-500.0,0.00027007,2]
[313857379,1707754285354,-500.0,0.00027007,2]
[313857380,1707754285365,-927.18,0.00027007,2]
[313857381,1707754285375,-500.0,0.00027007,2]
[313857382,1707754285385,-569.35,0.00027007,2]
[313857383,1707754285395,-500.0,0.00027007,2]
[313857384,1707754285405,-500.0,0.00027007,2]
[313857385,1707754285414,-1034.63,0.00027007,2]
[313857386,1707754285424,-754.76,0.00027007,2]
[313857387,1707754285434,-630.79,0.00027007,2]
[313857388,1707754285444,-500.0,0.00027007,2]
[313857389,1707754285454,-500.0,0.00027007,2]
[313857390,1707754285464,-1118.22,0.00027007,2]
[313857391,1707754285474,-500.0,0.00027007,2]
[313857392,1707754285484,-500.0,0.00027007,2]
[313857393,1707754285494,-500.0,0.00027007,2]
[313857394,1707754285504,-500.0,0.00027007,2]
[313857395,1707754285514,-500.0,0.00027008,2]
[313857396,1707754285525,-500.0,0.00027008,2]
[313857397,1707754285534,-500.0,0.00027008,2]
[313857398,1707754285544,-556.39378471,0.00027008,2]
[313857399,1707754285553,-500.0,0.00027008,2]
[313857400,1707754285563,-500.0,0.00027008,2]
[313857401,1707754285573,-500.0,0.00027008,2]
[313857402,1707754285583,-500.0,0.00027008,2]
[313857403,1707754285592,-500.0,0.00027008,2]
[313857404,1707754285602,-500.0,0.00027008,2]
[313857405,1707754285611,-668.37,0.00027008,2]
[313857406,1707754285621,-500.0,0.00027008,2]
[313857407,1707754285630,-500.0,0.00027008,2]
[313857408,1707754285640,-500.0,0.00027008,2]
[313857409,1707754285651,-500.0,0.00027008,2]
[313857410,1707754285661,-500.0,0.00027008,2]
[313857411,1707754285671,-500.0,0.00027008,2]
[313857412,1707754285681,-500.0,0.00027008,2]
[313857413,1707754285691,-2677.34,0.00027008,2]
[313857414,1707754285700,-500.0,0.00027008,2]
[313857415,1707754285711,-500.0,0.00027008,2]
[313857416,1707754285723,-1847.7,0.00027008,2]
[313857417,1707754285732,-500.0,0.00027008,2]
[313857418,1707754285742,-500.0,0.00027008,2]
[313857419,1707754285752,-500.0,0.00027008,2]
[313857420,1707754285762,-500.0,0.00027008,2]
[313857421,1707754285772,-1182.43,0.00027008,2]
[313857422,1707754285783,-500.0,0.00027008,2]
[313857423,1707754285792,-500.0,0.00027008,2]
[313857424,1707754285802,-340.56,0.00027009,2]
[313857425,1707754285811,-1624.92,0.00027009,2]
[313857426,1707754285821,-500.0,0.00027009,2]
[313857427,1707754285831,-500.0,0.00027009,2]
[313857428,1707754285841,-511.39,0.00027009,2]
[313857429,1707754285850,-500.0,0.00027009,2]
[313857430,1707754285860,-500.0,0.00027009,2]
[313857431,1707754285870,-500.0,0.00027009,2]
[313857432,1707754285880,-208.95,0.00027009,2]
[313857433,1707754285889,-494.08,0.00027009,2]
[313857434,1707754285900,-570.58,0.00027009,2]
[313857435,1707754285909,-602.1,0.00027009,2]
[313857436,1707754285919,-620.4,0.00027009,2]
[313857437,1707754285928,-1139.86,0.00027009,2]
[313857438,1707754285938,-500.0,0.00027009,2]
[313857439,1707754285948,-269.48000001,0.00027009,2]
[313857440,1707754285957,-500.0,0.00027009,2]
[313857441,1707754285967,-801.05,0.00027009,2]
[313857442,1707754285977,-504.72,0.00027009,2]
[313857443,1707754285986,-500.0,0.00027009,2]
[313857444,1707754285997,-500.0,0.00027009,2]
[313857445,1707754286008,-198.66,0.00027009,2]
[313857446,1707754286019,-187.19,0.00027009,2]
[313857447,1707754286032,-598.63,0.00027009,2]
[313857448,1707754286043,-1632.44,0.00027009,2]
[313857449,1707754286054,-500.0,0.00027009,2]
[313857450,1707754286067,-500.0,0.00027009,2]
[313857451,1707754286077,-358.46,0.00027009,2]
[313857452,1707754286087,-500.0,0.00027009,2]
[313857453,1707754286098,-510.63,0.00027009,2]
[313857454,1707754286110,-500.0,0.00027009,2]
[313857455,1707754286121,-500.0,0.00027009,2]
[313857456,1707754286132,-622.24,0.00027009,2]
[313857457,1707754286144,-500.0,0.00027009,2]
[313857458,1707754286155,-500.0,0.00027009,2]
[313857459,1707754286166,-619.98,0.00027009,2]
[313857460,1707754286177,-1237.84,0.00027009,2]
[313857461,1707754286188,-265.59,0.00027009,2]
[313857462,1707754286198,-674.02,0.00027009,2]
[313857463,1707754286208,-500.0,0.00027009,2]
[313857464,1707754286219,-521.13,0.00027009,2]
[313857465,1707754286229,-1959.64,0.00027009,2]
[313857466,1707754286239,-534.53,0.00027009,2]
[313857467,1707754286249,-151.73,0.00027009,2]
[313857468,1707754286258,-500.0,0.0002701,2]
[313857469,1707754286268,-500.0,0.0002701,2]
[313857470,1707754286280,-500.0,0.0002701,2]
[313857471,1707754286290,-500.0,0.0002701,2]
[313857472,1707754286299,-500.0,0.0002701,2]
[313857473,1707754286309,-500.0,0.0002701,2]
[313857474,1707754286318,-500.0,0.0002701,2]
[313857475,1707754286327,-500.0,0.0002701,2]
[313857476,1707754286336,-489.67943093,0.0002701,2]
[313857477,1707754286346,-500.0,0.0002701,2]
[313857478,1707754286355,-500.0,0.0002701,2]
[313857479,1707754286365,-246.24858213,0.0002701,2]
[313857480,1707754286375,-500.0,0.0002701,2]
[313857481,1707754286385,-500.0,0.0002701,2]
[313857482,1707754286394,-500.0,0.0002701,2]
[313857483,1707754286404,-500.0,0.0002701,2]
[313857484,1707754286414,-500.0,0.0002701,2]
[313857485,1707754286425,-500.0,0.0002701,2]
[313857486,1707754286434,-500.0,0.0002701,2]
[313857487,1707754286444,-500.0,0.0002701,2]
[313857488,1707754286453,-500.0,0.0002701,2]
[313857489,1707754286463,-500.0,0.0002701,2]
[313857490,1707754286472,-500.0,0.0002701,2]
[313857491,1707754286483,-500.0,0.0002701,2]
[313857492,1707754286492,-500.0,0.0002701,2]
[313857493,1707754286502,-500.0,0.0002701,2]
[313857494,1707754286511,-569.39,0.0002701,2]
[313857495,1707754286521,-500.0,0.0002701,2]
[313857496,1707754286533,-591.4853559,0.0002701,2]
[313857497,1707754286542,-500.0,0.0002701,2]
[313857498,1707754286552,-500.0,0.0002701,2]
[313857499,1707754286561,-500.0,0.0002701,2]
[313857500,1707754286571,-500.0,0.0002701,2]
[313857501,1707754286581,-500.0,0.0002701,2]
[313857502,1707754286591,-500.0,0.0002701,2]
[313857503,1707754286601,-500.0,0.0002701,2]
[313857504,1707754286611,-500.0,0.0002701,2]
[313857505,1707754286622,-500.0,0.0002701,2]
[313857506,1707754286631,-500.0,0.0002701,2]
[313857507,1707754286640,-500.0,0.0002701,2]
[313857508,1707754286650,-500.0,0.0002701,2]
[313857509,1707754286659,-500.0,0.0002701,2]
[313857510,1707754286669,-500.0,0.0002701,2]
[313857511,1707754286678,-500.0,0.0002701,2]
[313857512,1707754286688,-500.0,0.0002701,2]
[313857513,1707754286698,-500.0,0.00027011,2]
[313857514,1707754286708,-500.0,0.00027011,2]
[313857515,1707754286718,-500.0,0.00027011,2]
[313857516,1707754286728,-422.03,0.00027011,2]
[313857517,1707754286738,-500.0,0.00027011,2]
[313857518,1707754286748,-500.0,0.00027011,2]
[313857519,1707754286758,-381.42526774,0.00027011,2]
[313857520,1707754286768,-500.0,0.00027011,2]
[313857521,1707754286781,-500.0,0.00027011,2]
[313857522,1707754286792,-500.0,0.00027011,2]
[313857523,1707754286803,-520.16988691,0.00027011,2]
[313857524,1707754286814,-500.0,0.00027011,2]
[313857525,1707754286824,-500.0,0.00027011,2]
[313857526,1707754286834,-500.0,0.00027011,2]
[313857527,1707754286845,-207.4648962,0.00027011,2]
[313857528,1707754286856,-1339.16,0.00027011,2]
[313857529,1707754286867,-500.0,0.00027011,2]
[313857530,1707754286878,-500.0,0.00027011,2]
[313857531,1707754286889,-500.0,0.00027011,2]
[313857532,1707754286900,-500.0,0.00027011,2]
[313857533,1707754286911,-500.0,0.00027011,2]